fUSD/lending_fUSD_20250421
["ID","MTS","AMOUNT","RATE_DAILY","PERIOD"]
[358504045,1745219438221,-350.68,0.00057398,30]
[358504046,1745219438230,-350.68,0.00057398,30]
[358504047,1745219438239,-350.68,0.00057398,30]
[358504048,1745219438248,-827.42,0.00057398,30]
[358504049,1745219438257,-151.0,0.0005753,120]
[358504051,1745219438266,-500.0,0.00057676,120]
[358504053,1745219438275,-174.24,0.00058,60]
[358504055,1745219438284,-150.0,0.0005822,30]
[358504057,1745219438293,-150.0,0.0005822,30]
[358504059,1745219438302,-150.0,0.0005822,30]
[358504061,1745219438312,-150.0,0.0005822,30]
[358504063,1745219438321,-736.75,0.00058288,2]
[358504065,1745219438330,-503.24139961,0.000583,14]
[358504067,1745219438340,-198.84,0.00058605,2]
[358504069,1745219438349,-157.580309,0.0005865,2]
[358504072,1745219438358,-151.0,0.00058795,120]
[358504074,1745219438368,-500.0,0.00058952,120]
[358504076,1745219438377,-2720.73816765,0.00059078,15]
[358504078,1745219438386,-648.94718772,0.00059078,15]
[358504080,1745219438394,-2000.0,0.000595,90]
[358504082,1745219438404,-500.0,0.00059535,120]
[358504084,1745219438413,-522.659,0.0005981,120]
[358504086,1745219438423,-500.0,0.000599,2]
[358504088,1745219438431,-1000.0,0.000599,2]
[358504090,1745219438440,-200.0,0.0006,120]
[358504092,1745219438449,-1009.58,0.0006,120]
[358504094,1745219438458,-500.0,0.00060018,120]
[358504095,1745219438467,-151.0,0.00060059,120]
[358504097,1745219438476,-500.0,0.00060088,120]
[358504099,1745219438485,-500.0,0.000602,15]
[358504101,1745219438494,-894.638,0.0006038,2]
[358504103,1745219438504,-247.077,0.0006038,120]
[358504105,1745219438513,-168.725,0.0006038,120]
[358504107,1745219438522,-1334.609,0.0006038,120]
[358504109,1745219438531,-646.877,0.0006038,120]
[358504111,1745219438541,-1696.316,0.0006038,120]
[358504113,1745219438550,-500.0,0.00060387,120]
[358504115,1745219438560,-736.75,0.00060552,2]
[358504117,1745219438568,-157.580309,0.00060686,60]
[358504119,1745219438581,-174.24,0.000607,60]
[358504121,1745219438591,-1000.0,0.000608,90]
[358504124,1745219438600,-946.78563424,0.000608,30]
[358504126,1745219438610,-244.33491417,0.00060987,120]
[358504127,1745219438619,-152.87,0.00061,63]
[358504129,1745219438628,-152.87,0.00061,63]
[358504131,1745219438637,-152.87,0.00061,63]
[358504133,1745219438646,-152.87,0.00061,63]
[358504135,1745219438656,-150.0,0.000611,2]
[358504137,1745219438665,-2720.73816765,0.00061267,15]
[358504139,1745219438674,-648.94718772,0.00061267,15]
[358504140,1745219438683,-237.80487489,0.00061324,120]
[358504141,1745219438691,-194.0,0.000614,120]
[358504142,1745219438700,-1000.0,0.0006155,120]
[358504143,1745219438708,-176.8979223,0.00061644,120]
[358504144,1745219438718,-2000.0,0.000622,90]
[358504145,1745219438732,-3978.0,0.00062295,120]
[358504146,1745219438741,-688.695,0.00062295,120]
[358504147,1745219438750,-996.10479412,0.000625,120]
[358504148,1745219438759,-500.0,0.00062583,120]
[358504149,1745219438770,-736.75,0.00062816,2]
[358504150,1745219438779,-186.72856282,0.00062913,91]
[358504151,1745219438788,-151.0,0.00062993,120]
[358504152,1745219438797,-151.0,0.00062993,120]
[358504153,1745219438807,-151.0,0.00062993,120]
[358504154,1745219438816,-151.0,0.00062993,120]
[358504155,1745219438825,-500.0,0.00062997,60]
[358504156,1745219438834,-12000.0,0.00062998,120]
[358504157,1745219438843,-12997.65053886,0.00062998,120]
[358504159,1745219438852,-200.0,0.00063,120]
[358504161,1745219438861,-151.0,0.00063003,2]
[358504163,1745219438870,-153.776174,0.00063003,120]
[358504165,1745219438879,-151.0,0.00063003,120]
[358504167,1745219438888,-573.61179673,0.00063012,60]
[358504169,1745219438899,-1000.0,0.00063012,2]
[358504171,1745219438909,-1000.0,0.00063012,2]
[358504173,1745219438917,-1000.0,0.00063012,2]
[358504175,1745219438926,-1000.0,0.00063012,2]
[358504177,1745219438935,-1000.0,0.00063012,2]
[358504179,1745219438944,-1000.0,0.00063012,2]
[358504181,1745219438953,-1000.0,0.00063012,2]
[358504183,1745219438963,-1009.95574706,0.00063012,2]
[358504185,1745219438972,-199.66817015,0.00063012,120]
[358504187,1745219438982,-1000.0,0.00063013,2]
[358504189,1745219438991,-1000.0,0.00063013,2]
[358504191,1745219439000,-1000.0,0.00063013,2]
[358504193,1745219439009,-1000.0,0.00063013,2]
[358504195,1745219439018,-1000.0,0.00063013,2]
[358504197,1745219439029,-1000.0,0.00063013,2]
[358504199,1745219439038,-1000.0,0.00063013,2]
[358504201,1745219439047,-1000.0,0.00063013,2]
[358504203,1745219439057,-1000.0,0.00063013,2]
[358504205,1745219439066,-1000.0,0.00063013,2]
[358504206,1745219439076,-1000.0,0.00063013,2]
[358504208,1745219439086,-1000.0,0.00063013,2]
[358504210,1745219439095,-1000.0,0.00063013,2]
[358504212,1745219439104,-1000.0,0.00063013,2]
[358504214,1745219439113,-1000.0,0.00063013,2]
[358504216,1745219439122,-1000.0,0.00063013,2]
[358504218,1745219439131,-1000.0,0.00063013,2]
[358504220,1745219439140,-1000.0,0.00063013,2]
[358504222,1745219439149,-1000.0,0.00063013,2]
[358504224,1745219439158,-1000.0,0.00063013,2]
[358504226,1745219439167,-1000.0,0.00063013,2]
[358504228,1745219439176,-1000.0,0.00063013,2]
[358504230,1745219439186,-1000.0,0.00063013,2]
[358504232,1745219439195,-1000.0,0.00063013,2]
[358504234,1745219439204,-1000.0,0.00063013,2]
[358504236,1745219439213,-1000.0,0.00063013,2]
[358504238,1745219439222,-1000.0,0.00063013,2]
[358504240,1745219439231,-1000.0,0.00063013,2]
[358504242,1745219439240,-1000.0,0.00063013,2]
[358504244,1745219439249,-1000.0,0.00063013,2]
[358504259,1745219439379,-1000.0,0.00063013,2]
[358504261,1745219439390,-1000.0,0.00063013,2]
[358504263,1745219439400,-1000.0,0.00063013,2]
[358504264,1745219439410,-1000.0,0.00063013,2]
[358504266,1745219439420,-1000.0,0.00063013,2]
[358504268,1745219439428,-1000.0,0.00063013,2]
[358504270,1745219439437,-1000.0,0.00063013,2]
[358504271,1745219439447,-1000.0,0.00063013,2]
[358504272,1745219439455,-1000.0,0.00063013,2]
[358504273,1745219439465,-1000.0,0.00063013,2]
[358504274,1745219439474,-1000.0,0.00063013,2]
[358504275,1745219439484,-1000.0,0.00063013,2]
[358504277,1745219439493,-1000.0,0.00063013,2]
[358504278,1745219439502,-1000.0,0.00063013,2]
[358504279,1745219439512,-1000.0,0.00063013,2]
[358504280,1745219439522,-1000.0,0.00063013,2]
[358504281,1745219439532,-1000.0,0.00063013,2]
[358504282,1745219439541,-1000.0,0.00063013,2]
[358504283,1745219439550,-1000.0,0.00063013,2]
[358504284,1745219439560,-1000.0,0.00063013,2]
[358504285,1745219439569,-1000.0,0.00063013,2]
[358504286,1745219439579,-1000.0,0.00063013,2]
[358504287,1745219439588,-1000.0,0.00063013,2]
[358504288,1745219439598,-1000.0,0.00063013,2]
[358504289,1745219439607,-1000.0,0.00063013,2]
[358504290,1745219439617,-1000.0,0.00063013,2]
[358504291,1745219439626,-917.0,0.00063013,2]
[358504292,1745219439636,-500.0,0.00063013,3]
[358504293,1745219439645,-500.0,0.00063013,120]
[358504294,1745219439655,-517.81460755,0.00063013,120]
[358504295,1745219439664,-437.23994443,0.00063013,120]
[358504296,1745219439673,-524.84952752,0.00063013,120]
[358504297,1745219439683,-500.0,0.00063013,120]
[358504298,1745219439692,-500.0,0.00063013,120]
[358504299,1745219439702,-500.0,0.00063013,120]
[358504300,1745219439715,-500.0,0.00063013,120]
[358504301,1745219439725,-503.26592607,0.00063013,15]
[358504302,1745219439737,-203.46058736,0.00063013,120]
[358504303,1745219439747,-500.0,0.00063013,120]
[358504304,1745219439757,-508.19358261,0.00063013,120]
[358504305,1745219439766,-431.87457738,0.00063013,120]
[358504307,1745219439777,-239.8799124,0.00063013,120]
[358504309,1745219439786,-500.0,0.00063013,120]
[358504310,1745219439795,-517.96380861,0.00063013,120]
[358504311,1745219439806,-521.54529197,0.00063013,120]
[358504312,1745219439815,-500.0,0.00063013,14]
[358504313,1745219439825,-515.02709183,0.00063013,120]
[358504314,1745219439836,-500.0,0.00063013,120]
[358504315,1745219439846,-512.51392121,0.00063013,120]
[358504316,1745219439855,-537.79886844,0.00063013,120]
[358504317,1745219439864,-502.41908503,0.00063013,120]
[358504318,1745219439874,-513.050139,0.00063013,120]
[358504319,1745219439883,-500.0,0.00063013,120]
[358504320,1745219439894,-500.0,0.00063013,120]
[358504321,1745219439904,-528.94503763,0.00063013,120]
[358504322,1745219439916,-184.9874649,0.00063013,120]
[358504323,1745219439925,-508.52585241,0.00063013,120]
[358504324,1745219439935,-506.8656913,0.00063013,120]
[358504325,1745219439944,-208.18040093,0.00063013,120]
[358504326,1745219439952,-505.4096399,0.00063013,120]
[358504327,1745219439961,-449.72,0.00063013,120]
[358504328,1745219439970,-500.0,0.00063013,120]
[358504329,1745219439980,-527.53391386,0.00063013,120]
[358504330,1745219439989,-500.0,0.00063013,120]
[358504331,1745219439999,-500.0,0.00063013,120]
[358504332,1745219440010,-500.0,0.00063013,120]
[358504333,1745219440020,-500.0,0.00063013,120]
[358504334,1745219440031,-500.0,0.00063013,120]
[358504335,1745219440041,-502.57506222,0.00063013,120]
[358504336,1745219440050,-505.09588526,0.00063013,120]
[358504337,1745219440059,-500.0,0.00063013,120]
[358504338,1745219440068,-500.0,0.00063013,120]
[358504339,1745219440077,-500.0,0.00063013,120]
[358504340,1745219440087,-500.0,0.00063013,120]
[358504341,1745219440097,-574.76434348,0.00063013,120]
[358504342,1745219440108,-500.0,0.00063013,120]
[358504343,1745219440117,-570.0768427,0.00063013,120]
[358504344,1745219440128,-500.0,0.00063013,120]
[358504345,1745219440138,-500.0,0.00063013,120]
[358504346,1745219440148,-500.0,0.00063013,120]
[358504347,1745219440159,-1388.58,0.00063013,120]
[358504348,1745219440169,-500.0,0.00063013,120]
[358504349,1745219440178,-500.0,0.00063013,120]
[358504350,1745219440187,-500.0,0.00063013,120]
[358504351,1745219440196,-523.38480097,0.00063013,120]
[358504352,1745219440205,-500.0,0.00063013,120]
[358504353,1745219440214,-500.0,0.00063013,120]
[358504354,1745219440223,-500.0,0.00063013,120]
[358504355,1745219440232,-500.0,0.00063013,120]
[358504356,1745219440241,-500.0,0.00063013,120]
[358504357,1745219440250,-483.61157394,0.00063013,120]
[358504358,1745219440261,-500.0,0.00063013,120]
[358504359,1745219440271,-545.20865708,0.00063013,120]
[358504360,1745219440281,-500.0,0.00063013,120]
[358504361,1745219440290,-500.0,0.00063013,120]
[358504362,1745219440299,-151.0,0.00063013,2]
[358504363,1745219440308,-151.0,0.00063013,2]
[358504364,1745219440317,-936.6,0.00063013,120]
[358504365,1745219440326,-500.0,0.00063013,120]
[358504366,1745219440335,-500.0,0.00063013,120]
[358504367,1745219440346,-553.68960114,0.00063013,120]
[358504368,1745219440355,-500.0,0.00063013,120]
[358504369,1745219440364,-500.0,0.00063013,120]
[358504370,1745219440374,-524.19774049,0.00063013,120]
[358504371,1745219440383,-500.0,0.00063013,120]
[358504372,1745219440392,-501.62396758,0.00063013,2]
[358504373,1745219440402,-506.63485367,0.00063013,120]
[358504374,1745219440411,-543.9556144,0.00063013,120]
[358504375,1745219440421,-500.0,0.00063013,120]
[358504376,1745219440430,-500.0,0.00063013,2]
[358504377,1745219440439,-555.82582885,0.00063013,120]
[358504378,1745219440448,-500.0,0.00063013,120]
[358504379,1745219440458,-500.0,0.00063013,120]
[358504380,1745219440467,-500.0,0.00063013,120]
[358504381,1745219440475,-508.29858572,0.00063013,2]
[358504382,1745219440484,-541.94958479,0.00063013,120]
[358504383,1745219440493,-565.56746368,0.00063013,120]
[358504384,1745219440502,-500.0,0.00063013,120]
[358504385,1745219440511,-500.0,0.00063013,120]
[358504386,1745219440520,-500.0,0.00063013,2]
[358504388,1745219440529,-542.53878016,0.00063013,120]
[358504389,1745219440538,-500.0,0.00063013,120]
[358504390,1745219440548,-517.25861802,0.00063013,120]
[358504391,1745219440558,-500.0,0.00063013,120]
[358504392,1745219440567,-528.53,0.00063013,120]
[358504393,1745219440577,-500.0,0.00063013,120]
[358504394,1745219440586,-500.0,0.00063013,120]
[358504395,1745219440595,-533.68233951,0.00063013,120]
[358504396,1745219440605,-500.0,0.00063013,120]
[358504398,1745219440614,-500.0,0.00063013,120]
[358504400,1745219440624,-517.07906823,0.00063013,120]
[358504401,1745219440634,-515.92703972,0.00063013,120]
[358504403,1745219440643,-500.0,0.00063013,120]
[358504404,1745219440652,-530.89504373,0.00063013,120]
[358504405,1745219440661,-500.0,0.00063013,120]
[358504406,1745219440671,-517.48407692,0.00063013,120]
[358504407,1745219440681,-522.23794724,0.00063013,120]
[358504408,1745219440690,-500.0,0.00063013,120]
[358504409,1745219440699,-500.0,0.00063013,120]
[358504410,1745219440711,-523.54175591,0.00063013,120]
[358504411,1745219440723,-500.0,0.00063013,120]
[358504412,1745219440736,-500.0,0.00063013,120]
[358504413,1745219440746,-500.0,0.00063013,120]
[358504414,1745219440755,-500.0,0.00063013,120]
[358504415,1745219440767,-500.0,0.00063013,120]
[358504416,1745219440776,-505.39295571,0.00063013,120]
[358504417,1745219440785,-519.68035074,0.00063013,120]
[358504418,1745219440794,-530.09584812,0.00063013,120]
[358504419,1745219440803,-540.04179951,0.00063013,120]
[358504420,1745219440814,-500.0,0.00063013,120]
[358504421,1745219440824,-528.50294025,0.00063013,120]
[358504422,1745219440833,-500.0,0.00063013,120]
[358504423,1745219440842,-407.45219782,0.00063013,120]
[358504424,1745219440852,-258.88411518,0.00063013,120]
[358504425,1745219440861,-334.80534902,0.00063013,120]
[358504426,1745219440870,-500.0,0.00063013,120]
[358504427,1745219440882,-508.92842956,0.00063013,120]
[358504428,1745219440892,-270.19695642,0.00063013,120]
[358504429,1745219440903,-500.0,0.00063013,120]
[358504430,1745219440912,-500.0,0.00063013,120]
[358504431,1745219440921,-511.2095851,0.00063013,120]
[358504432,1745219440930,-250.0,0.00063013,120]
[358504433,1745219440940,-646.47631652,0.00063013,120]
[358504434,1745219440949,-500.0,0.00063013,120]
[358504435,1745219440957,-500.0,0.00063013,120]
[358504436,1745219440967,-195.45733755,0.00063013,120]
[358504437,1745219440976,-500.0,0.00063013,120]
[358504438,1745219440986,-500.0,0.00063013,120]
[358504439,1745219440995,-500.0,0.00063013,120]
[358504440,1745219441005,-514.22434345,0.00063013,120]
[358504441,1745219441015,-500.0,0.00063013,30]
[358504442,1745219441024,-500.0,0.00063013,120]
[358504443,1745219441033,-500.0,0.00063013,120]
[358504444,1745219441042,-500.0,0.00063013,120]
[358504445,1745219441052,-500.0,0.00063013,120]
[358504446,1745219441061,-500.0,0.00063013,120]
[358504447,1745219441070,-500.0,0.00063013,120]
[358504448,1745219441080,-500.0,0.00063013,120]
[358504449,1745219441089,-170.73244895,0.00063013,120]
[358504450,1745219441098,-518.09002428,0.00063013,120]
[358504451,1745219441107,-500.0,0.00063013,120]
[358504452,1745219441116,-500.0,0.00063013,120]
[358504453,1745219441125,-500.0,0.00063013,120]
[358504454,1745219441134,-500.0,0.00063013,120]
[358504455,1745219441144,-500.0,0.00063013,120]
[358504456,1745219441153,-500.0,0.00063013,120]
[358504457,1745219441162,-500.0,0.00063013,120]
[358504458,1745219441171,-500.0,0.00063013,120]
[358504459,1745219441180,-500.0,0.00063013,120]
[358504460,1745219441189,-537.17308493,0.00063013,120]
[358504461,1745219441198,-500.0,0.00063013,120]
[358504462,1745219441207,-576.50626452,0.00063013,120]
[358504463,1745219441215,-500.0,0.00063013,120]
[358504464,1745219441224,-500.0,0.00063013,120]
[358504465,1745219441233,-500.0,0.00063013,120]
[358504466,1745219441242,-500.0,0.00063013,120]
[358504467,1745219441251,-500.0,0.00063013,120]
[358504468,1745219441262,-275.06719502,0.00063013,120]
[358504469,1745219441271,-500.0,0.00063013,120]
[358504470,1745219441282,-500.0,0.00063013,120]
[358504471,1745219441292,-522.94760242,0.00063013,120]
[358504472,1745219441303,-500.0,0.00063013,120]
[358504473,1745219441313,-529.17004573,0.00063013,120]
[358504474,1745219441323,-210.32957908,0.00063013,120]
[358504475,1745219441333,-500.0,0.00063013,120]
[358504476,1745219441342,-500.0,0.00063013,120]
[358504477,1745219441353,-930.49,0.00063013,120]
[358504478,1745219441362,-500.0,0.00063013,120]
[358504479,1745219441372,-500.0,0.00063013,120]
[358504480,1745219441381,-500.0,0.00063013,120]
[358504481,1745219441390,-500.0,0.00063013,120]
[358504482,1745219441399,-533.65285747,0.00063013,120]
[358504483,1745219441408,-500.0,0.00063013,120]
[358504484,1745219441417,-574.47228221,0.00063013,120]
[358504485,1745219441427,-500.0,0.00063013,120]
[358504486,1745219441436,-514.12977325,0.00063013,120]
[358504487,1745219441445,-554.60362736,0.00063013,120]
[358504488,1745219441455,-500.0,0.00063013,120]
[358504489,1745219441464,-500.0,0.00063013,120]
[358504490,1745219441473,-164.02108377,0.00063013,120]
[358504491,1745219441483,-539.75018618,0.00063013,120]
[358504492,1745219441492,-500.0,0.00063013,120]
[358504493,1745219441502,-552.17207215,0.00063013,120]
[358504494,1745219441511,-570.41510949,0.00063013,120]
[358504495,1745219441520,-519.32851682,0.00063013,120]
[358504496,1745219441529,-500.0,0.00063013,120]
[358504497,1745219441539,-500.0,0.00063013,120]
[358504498,1745219441548,-540.30237646,0.00063013,120]
[358504499,1745219441558,-500.0,0.00063013,120]
[358504500,1745219441567,-500.0,0.00063013,120]
[358504501,1745219441578,-500.0,0.00063013,120]
[358504502,1745219441587,-500.0,0.00063013,120]
[358504503,1745219441597,-500.0,0.00063013,120]
[358504504,1745219441606,-210.97333691,0.00063013,120]
[358504505,1745219441616,-500.0,0.00063013,120]
[358504506,1745219441625,-496.31353602,0.00063013,120]
[358504507,1745219441634,-500.0,0.00063013,120]
[358504508,1745219441643,-205.85199651,0.00063013,120]
[358504509,1745219441652,-500.0,0.00063013,120]
[358504510,1745219441662,-500.0,0.00063013,120]
[358504511,1745219441671,-500.0,0.00063013,120]
[358504512,1745219441680,-500.0,0.00063013,120]
[358504513,1745219441690,-500.0,0.00063013,120]
[358504514,1745219441699,-500.0,0.00063013,120]
[358504515,1745219441709,-512.62408005,0.00063013,120]
[358504516,1745219441719,-500.0,0.00063013,120]
[358504517,1745219441730,-546.73523348,0.00063013,120]
[358504518,1745219441740,-500.0,0.00063013,120]
[358504519,1745219441749,-521.69765095,0.00063013,120]
[358504520,1745219441760,-500.0,0.00063013,120]
[358504521,1745219441770,-539.17818239,0.00063013,120]
[358504522,1745219441780,-538.49109632,0.00063013,120]
[358504523,1745219441790,-500.0,0.00063013,120]
[358504524,1745219441801,-535.34739309,0.00063013,120]
[358504525,1745219441811,-586.10973081,0.00063013,120]
[358504526,1745219441821,-500.0,0.00063013,120]
[358504527,1745219441831,-500.0,0.00063013,120]
[358504528,1745219441841,-429.62605538,0.00063013,120]
[358504529,1745219441850,-500.0,0.00063013,120]
[358504530,1745219441859,-560.37630026,0.00063013,120]
[358504531,1745219441869,-500.0,0.00063013,120]
[358504532,1745219441878,-629.84781352,0.00063013,120]
[358504533,1745219441888,-500.0,0.00063013,120]
[358504534,1745219441898,-500.0,0.00063013,120]
[358504535,1745219441907,-500.0,0.00063013,120]
[358504536,1745219441916,-500.0,0.00063013,120]
[358504537,1745219441925,-543.85444649,0.00063013,120]
[358504538,1745219441935,-500.0,0.00063013,120]
[358504539,1745219441944,-500.0,0.00063013,120]
[358504540,1745219441953,-500.0,0.00063013,120]
[358504541,1745219441963,-500.0,0.00063013,120]
[358504542,1745219441972,-544.79583879,0.00063013,120]
[358504543,1745219441982,-193.12669195,0.00063013,120]
[358504544,1745219441991,-500.0,0.00063013,120]
[358504545,1745219442000,-500.0,0.00063013,120]
[358504546,1745219442010,-500.0,0.00063013,120]
[358504547,1745219442019,-523.67123264,0.00063013,120]
[358504548,1745219442029,-500.0,0.00063013,120]
[358504549,1745219442038,-500.0,0.00063013,120]
[358504550,1745219442048,-511.33194378,0.00063013,120]
[358504551,1745219442057,-500.0,0.00063013,120]
[358504552,1745219442067,-500.0,0.00063013,120]
[358504553,1745219442076,-500.0,0.00063013,120]
[358504554,1745219442086,-500.0,0.00063013,120]
[358504555,1745219442094,-500.0,0.00063013,10]
[358504556,1745219442103,-500.0,0.00063013,120]
[358504557,1745219442112,-500.0,0.00063013,120]
[358504558,1745219442121,-625.50746254,0.00063013,120]
[358504559,1745219442130,-500.0,0.00063013,120]
[358504560,1745219442139,-500.0,0.00063013,120]
[358504561,1745219442149,-369.41525961,0.00063013,120]
[358504562,1745219442158,-549.39229299,0.00063013,120]
[358504563,1745219442168,-500.0,0.00063013,120]
[358504564,1745219442177,-500.0,0.00063013,120]
[358504565,1745219442186,-500.0,0.00063013,120]
[358504566,1745219442195,-551.57591507,0.00063013,120]
[358504567,1745219442204,-500.0,0.00063013,120]
[358504568,1745219442213,-513.00526959,0.00063013,120]
[358504569,1745219442222,-500.0,0.00063013,120]
[358504570,1745219442326,-500.0,0.00063013,20]
[358504571,1745219442350,-544.42752104,0.00063013,120]
[358504572,1745219442359,-512.90726598,0.00063013,120]
[358504573,1745219442368,-151.0,0.00063013,120]
[358504574,1745219442377,-500.0,0.00063013,120]
[358504575,1745219442386,-500.0,0.00063013,120]
[358504576,1745219442396,-528.0446655,0.00063013,120]
[358504577,1745219442405,-500.0,0.00063013,2]
[358504579,1745219442414,-500.0,0.00063013,120]
[358504580,1745219442424,-500.0,0.00063013,120]
[358504581,1745219442433,-502.30352225,0.00063013,120]
[358504582,1745219442443,-500.0,0.00063013,120]
[358504584,1745219442452,-500.0,0.00063013,120]
[358504586,1745219442461,-551.11582393,0.00063013,120]
[358504588,1745219442471,-500.0,0.00063013,120]
[358504590,1745219442480,-151.0,0.00063013,120]
[358504591,1745219442489,-500.0,0.00063013,120]
[358504592,1745219442498,-500.0,0.00063013,120]
[358504593,1745219442507,-291.882179,0.00063013,120]
[358504594,1745219442517,-500.0,0.00063013,120]
[358504595,1745219442526,-500.0,0.00063013,120]
[358504596,1745219442535,-1500.0,0.00063013,120]
[358504597,1745219442544,-500.0,0.00063013,120]
[358504598,1745219442554,-500.0,0.00063013,120]
[358504599,1745219442563,-500.0,0.00063013,120]
[358504600,1745219442573,-500.0,0.00063013,120]
[358504601,1745219442582,-500.0,0.00063013,120]
[358504602,1745219442592,-500.0,0.00063013,120]
[358504603,1745219442601,-500.0,0.00063013,120]
[358504604,1745219442610,-500.0,0.00063013,120]
[358504605,1745219442619,-500.0,0.00063013,12]
[358504606,1745219442628,-548.37548356,0.00063013,120]
[358504607,1745219442636,-500.0,0.00063013,120]
[358504608,1745219442645,-500.0,0.00063013,120]
[358504609,1745219442654,-500.0,0.00063013,120]
[358504610,1745219442663,-500.0,0.00063013,120]
[358504611,1745219442673,-500.0,0.00063013,120]
[358504612,1745219442681,-500.0,0.00063013,120]
[358504613,1745219442690,-531.79381831,0.00063013,120]
[358504614,1745219442699,-500.0,0.00063013,120]
[358504615,1745219442708,-500.0,0.00063013,120]
[358504617,1745219442718,-500.0,0.00063013,30]
[358504620,1745219442732,-547.09804411,0.00063013,120]
[358504622,1745219442741,-500.0,0.00063013,120]
[358504624,1745219442751,-500.0,0.00063013,120]
[358504625,1745219442760,-500.0,0.00063013,120]
[358504626,1745219442770,-500.0,0.00063013,120]
[358504627,1745219442780,-999.0,0.00063013,120]
[358504628,1745219442790,-500.0,0.00063013,120]
[358504629,1745219442799,-500.0,0.00063013,120]
[358504630,1745219442809,-500.0,0.00063013,120]
[358504631,1745219442819,-500.0,0.00063013,120]
[358504632,1745219442829,-500.0,0.00063013,120]
[358504633,1745219442838,-348.86394823,0.00063013,120]
[358504634,1745219442848,-500.0,0.00063013,120]
[358504635,1745219442858,-500.0,0.00063013,120]
[358504636,1745219442867,-500.0,0.00063013,120]
[358504637,1745219442877,-500.0,0.00063013,120]
[358504638,1745219442887,-558.8831218,0.00063013,120]
[358504639,1745219442897,-500.0,0.00063013,120]
[358504640,1745219442905,-500.0,0.00063013,120]
[358504641,1745219442914,-500.0,0.00063013,120]
[358504642,1745219442922,-500.0,0.00063013,120]
[358504643,1745219442931,-365.61306793,0.00063013,120]
[358504644,1745219442939,-500.0,0.00063013,120]
[358504645,1745219442948,-538.24802769,0.00063013,120]
[358504646,1745219442957,-500.0,0.00063013,120]
[358504647,1745219442967,-500.0,0.00063013,120]
[358504648,1745219442976,-561.14074345,0.00063013,120]
[358504649,1745219442985,-500.0,0.00063013,120]
[358504650,1745219442995,-500.0,0.00063013,120]
[358504651,1745219443004,-500.0,0.00063013,120]
[358504652,1745219443013,-640.8099035,0.00063013,120]
[358504653,1745219443023,-500.0,0.00063013,120]
[358504654,1745219443032,-743.91,0.00063013,120]
[358504655,1745219443041,-500.0,0.00063013,120]
[358504656,1745219443050,-500.0,0.00063013,120]
[358504657,1745219443060,-500.0,0.00063013,120]
[358504658,1745219443069,-548.26488094,0.00063013,120]
[358504659,1745219443079,-500.0,0.00063013,120]
[358504660,1745219443087,-500.0,0.00063013,120]
[358504661,1745219443096,-500.0,0.00063013,120]
[358504662,1745219443105,-500.0,0.00063013,120]
[358504663,1745219443113,-500.0,0.00063013,120]
[358504665,1745219443122,-500.0,0.00063013,120]
[358504666,1745219443131,-500.0,0.00063013,120]
[358504668,1745219443140,-500.0,0.00063013,120]
[358504670,1745219443149,-499.50801198,0.00063013,120]
[358504672,1745219443159,-500.0,0.00063013,120]